fUST/lending_fUST_20250824
["ID","MTS","AMOUNT","RATE_DAILY","PERIOD"]
[381064772,1755986825232,-221.71365345,0.00028299,2]
[381064773,1755986953081,-8728.57921105,0.00028299,2]
[381064774,1755986953107,-337.5983817,0.00028533,10]
[381064775,1755986953127,-188.9947005,0.00029215,2]
[381064776,1755986953148,-194.22180214,0.00029406,2]
[381064777,1755986953168,-170.79373632,0.00029406,2]
[381064778,1755986953188,-6090.48616829,0.00029406,2]
[381064779,1755986977434,281.33198475,0.000199,2]
[381064780,1755986977638,281.33198475,0.00023353,2]
[381064781,1755986978002,281.33198475,0.00026806,6]
[381064782,1755986978410,281.33198475,0.0002508,2]
[381065040,1755987038103,-199.0,0.00028433,10]
[381065041,1755987038114,-281.33198475,0.00028533,10]
[381065042,1755987038124,-1218.30254757,0.00029259,22]
[381065043,1755987038134,-172.99193307,0.00029306,2]
[381065044,1755987038144,-400.29087495,0.00029406,2]
[381065045,1755987038153,-194.22180211,0.00029424,2]
[381065046,1755987038162,-194.22180211,0.00029442,2]
[381065048,1755987038172,-194.22180211,0.0002946,2]
[381065050,1755987038183,-500.0,0.00029473,5]
[381065051,1755987038192,-44145.1780382,0.00029477,2]
[381065053,1755987038201,-312.93,0.00029477,3]
[381065055,1755987038210,-156.46,0.00029477,3]
[381065057,1755987038219,-469.41,0.00029477,3]
[381065059,1755987038229,-194.22180211,0.00029478,2]
[381065060,1755987038238,-192.99874425,0.00029486,2]
[381065061,1755987038247,-500.0,0.00029486,2]
[381065062,1755987038257,-651.96608702,0.00029486,2]
[381065063,1755987038267,-577.97078283,0.00029486,2]
[381065064,1755987038276,-370000.0,0.00029487,2]
[381065065,1755987038285,-800.0,0.00029506,2]
[381065066,1755987038295,-7357.52967304,0.00029563,2]
[381065067,1755987038304,-12695.67094824,0.00029571,2]
[381065068,1755987038313,-500.0,0.00029573,5]
[381065069,1755987038322,-500.0,0.00029573,5]
[381065070,1755987038332,-500.0,0.00029573,5]
[381065071,1755987038341,-500.0,0.00029573,5]
[381065072,1755987038350,-500.0,0.00029573,5]
[381065073,1755987038359,-500.0,0.00029573,5]
[381065074,1755987038368,-500.0,0.00029573,5]
[381065075,1755987038378,-500.0,0.00029573,5]
[381065076,1755987038387,-500.0,0.00029573,5]
[381065077,1755987038396,-1206393.85054152,0.00029578,20]
[381065078,1755987038407,-250.0,0.00029578,10]
[381065079,1755987038418,-250.0,0.00029578,10]
[381065080,1755987038428,-250.0,0.00029578,10]
[381065081,1755987038437,-250.0,0.00029578,10]
[381065082,1755987038446,-160.0,0.00029635,2]
[381065083,1755987038455,-151.0,0.000297,11]
[381065084,1755987038464,-215.94678008,0.00029725,2]
[381065085,1755987038473,-574.79,0.000298,7]
[381065086,1755987038482,-200.58,0.000298,7]
[381065087,1755987038492,-5686.34,0.000298,2]
[381065088,1755987038501,-1000.0,0.00030121,5]
[381065089,1755987038510,-336.41910155,0.00030121,5]
[381065090,1755987038520,-1000.0,0.00030121,5]
[381065091,1755987038535,-1000.0,0.00030121,5]
[381065092,1755987038544,-1000.0,0.00030121,5]
[381065093,1755987038555,-1000.0,0.00030121,5]
[381065094,1755987038564,-281.33198475,0.00030259,13]
[381065095,1755987038574,-615.03446656,0.00030668,5]
[381065096,1755987038586,-1500.0,0.00030668,5]
[381065097,1755987038595,-1000.0,0.00030668,5]
[381065098,1755987038607,-500.0,0.00030668,5]
[381065099,1755987038616,-500.0,0.00030668,5]
[381065100,1755987038625,-625.86,0.00030847,3]
[381065101,1755987038635,-312.92,0.00030847,3]
[381065102,1755987038644,-1500.0,0.00031216,5]
[381065103,1755987038653,-5000.0,0.00031727,4]
[381065104,1755987038662,-500.0,0.00032876,120]
[381065105,1755987038671,-5069.81583571,0.00033677,2]
[381065106,1755987038680,-281.33198475,0.00033712,21]
[381065107,1755987038691,-500.0,0.00034246,120]
[381065108,1755987038701,-7357.52967304,0.00034736,2]
[381065109,1755987038710,-155.0,0.00034746,7]
[381065110,1755987038719,-326.0,0.00034746,7]
[381065111,1755987038729,-326.0,0.00034746,7]
[381065112,1755987038738,-326.0,0.00034746,7]
[381065113,1755987038747,-153.0,0.00034746,7]
[381065114,1755987038757,-161.0,0.00034746,7]
[381065115,1755987038766,-161.0,0.00034746,7]
[381065116,1755987038776,-161.0,0.00034746,7]
[381065117,1755987038785,-168.62637664,0.00034746,7]
[381065118,1755987038795,-203.40023361,0.00034746,7]
[381065119,1755987038805,-1762.0,0.00034746,7]
[381065120,1755987038814,-1762.0,0.00034746,7]
[381065121,1755987038823,-1762.0,0.00034746,7]
[381065122,1755987038833,-1762.0,0.00034746,7]
[381065123,1755987038843,-1762.0,0.00034746,7]
[381065124,1755987038853,-1762.0,0.00034746,7]
[381065125,1755987038863,-1762.0,0.00034746,7]
[381065126,1755987038872,-1762.0,0.00034746,7]
[381065127,1755987038882,-1912.84100546,0.00034746,7]
[381065128,1755987038892,-217.0334113,0.00034746,7]
[381065129,1755987038902,-232.37252479,0.00034746,7]
[381065130,1755987038911,-844.50316758,0.00034746,7]
[381065131,1755987038921,-160.0,0.000348,2]
[381065132,1755987038930,-260.0,0.00035348,2]
[381065133,1755987038939,-281.33198475,0.00035439,24]
[381065134,1755987038949,-500.0,0.00035616,120]
[381065135,1755987038958,-260.0,0.00035896,2]
[381065136,1755987038967,-200.0,0.0003657,43]
[381065137,1755987038978,-500.0,0.00036986,120]
[381065138,1755987038988,-6490.77704324,0.00037153,10]
[381065139,1755987038997,-281.33198475,0.00037166,28]
[381065140,1755987039007,-200.58,0.000376,7]
[381065141,1755987039016,-5686.34,0.000376,14]
[381065142,1755987039025,-151.0,0.000376,14]
[381065143,1755987039243,-163.366267,0.000376,14]
[381065144,1755987039252,-163.366267,0.000376,14]
[381065145,1755987039262,-151.0,0.000376,14]
[381065146,1755987039271,-163.366267,0.000376,14]
[381065147,1755987039279,-151.0,0.000376,14]
[381065148,1755987039289,-163.366267,0.000376,14]
[381065149,1755987039297,-151.0,0.000376,14]
[381065150,1755987039307,-373.340385,0.000376,14]
[381065151,1755987039315,-373.340385,0.000376,14]
[381065152,1755987039325,-373.340385,0.000376,14]
[381065153,1755987039334,-373.340385,0.000376,14]
[381065154,1755987039343,-151.0,0.000376,14]
[381065155,1755987039353,-302.28126,0.000376,14]
[381065156,1755987039362,-302.28126,0.000376,14]
[381065157,1755987039372,-302.28126,0.000376,14]
[381065158,1755987039381,-151.0,0.000376,14]
[381065159,1755987039390,-302.28126,0.000376,14]
[381065160,1755987039399,-151.0,0.000376,14]
[381065161,1755987039409,-151.0,0.000376,14]
[381065162,1755987039419,-151.0,0.000376,14]
[381065163,1755987039428,-171.714576,0.000376,14]
[381065164,1755987039437,-151.0,0.000376,14]
[381065165,1755987039446,-171.714576,0.000376,14]
[381065166,1755987039455,-171.714576,0.000376,14]
[381065167,1755987039464,-171.714576,0.000376,14]
[381065168,1755987039474,-151.0,0.000376,14]
[381065169,1755987039483,-151.0,0.000376,14]
[381065170,1755987039492,-151.0,0.000376,14]
[381065171,1755987039501,-151.528159,0.000376,14]
[381065172,1755987039510,-151.528159,0.000376,14]
[381065173,1755987039520,-151.0,0.000376,14]
[381065174,1755987039532,-151.528159,0.000376,14]
[381065175,1755987039541,-151.0,0.000376,14]
[381065176,1755987039551,-151.528159,0.000376,14]
[381065177,1755987039560,-556.318812,0.000376,14]
[381065178,1755987039571,-556.318812,0.000376,14]
[381065179,1755987039580,-1440.584452,0.000376,14]
[381065180,1755987039589,-151.0,0.000376,14]
[381065181,1755987039599,-1440.584452,0.000376,14]
[381065182,1755987039610,-556.318812,0.000376,14]
[381065183,1755987039621,-1440.584452,0.000376,14]
[381065184,1755987039630,-556.318812,0.000376,14]
[381065185,1755987039640,-1440.584452,0.000376,14]
[381065186,1755987039649,-7357.52967304,0.00038346,3]
[381065187,1755987039659,-151.0,0.00038356,14]
[381065188,1755987039668,-151.0,0.00038356,14]
[381065189,1755987039677,-151.0,0.00038356,14]
[381065190,1755987039687,-151.0,0.00038356,14]
[381065191,1755987039697,-151.0,0.00038356,14]
[381065192,1755987039706,-151.0,0.00038356,14]
[381065193,1755987039716,-242.680272,0.00038356,14]
[381065194,1755987039725,-242.680272,0.00038356,14]
[381065195,1755987039735,-242.680272,0.00038356,14]
[381065196,1755987039744,-242.680272,0.00038356,14]
[381065197,1755987039753,-151.0,0.00038356,14]
[381065198,1755987039762,-151.0,0.00038356,14]
[381065199,1755987039772,-151.0,0.00038356,14]
[381065200,1755987039781,-151.0,0.00038356,14]
[381065201,1755987039791,-151.0,0.00038356,14]
[381065202,1755987039801,-151.0,0.00038356,14]
[381065203,1755987039810,-151.0,0.00038356,14]
[381065204,1755987039819,-151.0,0.00038356,14]
[381065205,1755987039827,-151.0,0.00038356,14]
[381065207,1755987039836,-151.0,0.00038356,14]
[381065209,1755987039846,-482.620001,0.00038356,14]
[381065210,1755987039855,-151.0,0.00038356,14]
[381065211,1755987039864,-482.620001,0.00038356,14]
[381065212,1755987039873,-482.620001,0.00038356,14]
[381065213,1755987039882,-482.620001,0.00038356,14]
[381065214,1755987039891,-151.0,0.00038356,14]
[381065216,1755987039902,-151.491058,0.00038356,14]
[381065218,1755987039911,-151.491058,0.00038356,14]
[381065220,1755987039920,-151.491058,0.00038356,14]
[381065222,1755987039929,-151.491058,0.00038356,14]
[381065224,1755987039938,-151.0,0.00038356,14]
[381065226,1755987039947,-165.87036,0.00038356,14]
[381065228,1755987039957,-233.624757,0.00038356,14]
[381065230,1755987039966,-237.529052,0.00038356,14]
[381065232,1755987039975,-151.0,0.00038356,14]
[381065234,1755987039985,-233.624757,0.00038356,14]
[381065236,1755987039994,-237.529052,0.00038356,14]
[381065238,1755987040003,-151.0,0.00038356,14]
[381065240,1755987040012,-233.624757,0.00038356,14]
[381065242,1755987040022,-153.749092,0.00038356,14]
[381065244,1755987040031,-237.529052,0.00038356,14]
[381065246,1755987040041,-233.624757,0.00038356,14]
[381065248,1755987040051,-237.529052,0.00038356,14]
[381065250,1755987040060,-500.0,0.00038356,120]
[381065252,1755987040069,-496.638635,0.00038356,14]
[381065254,1755987040079,-496.638635,0.00038356,14]
[381065256,1755987040088,-496.638635,0.00038356,14]
[381065258,1755987040099,-151.805446,0.00038356,14]
[381065260,1755987040109,-496.638635,0.00038356,14]
[381065262,1755987040119,-151.0,0.00038356,14]
[381065264,1755987040128,-151.0,0.00038356,14]
[381065266,1755987040137,-151.0,0.00038356,14]
[381065268,1755987040146,-151.0,0.00038356,14]
[381065270,1755987040155,-151.0,0.00038356,14]
[381065272,1755987040165,-151.0,0.00038356,14]
[381065274,1755987040174,-151.0,0.00038356,14]
[381065276,1755987040184,-334.351261,0.00038356,14]
[381065277,1755987040193,-151.0,0.00038356,14]
[381065279,1755987040202,-334.351261,0.00038356,14]
[381065281,1755987040213,-334.351261,0.00038356,14]
[381065283,1755987040224,-151.0,0.00038356,14]
[381065285,1755987040233,-334.351261,0.00038356,14]
[381065287,1755987040242,-310.190471,0.00038356,14]
[381065288,1755987040251,-310.190471,0.00038356,14]
[381065289,1755987040260,-456.442754,0.00038356,14]
[381065290,1755987040269,-456.442754,0.00038356,14]
[381065291,1755987040278,-310.190471,0.00038356,14]
[381065292,1755987040287,-456.442754,0.00038356,14]
[381065293,1755987040296,-310.190471,0.00038356,14]
[381065294,1755987040305,-456.442754,0.00038356,14]
[381065295,1755987040314,-170.637382,0.00038356,14]
[381065296,1755987040323,-1695.491154,0.00038356,14]
[381065297,1755987040333,-151.0,0.00038356,14]
[381065298,1755987040342,-1695.491154,0.00038356,14]
[381065300,1755987040351,-151.0,0.00038356,14]
[381065301,1755987040360,-170.637382,0.00038356,14]
[381065302,1755987040370,-151.0,0.00038356,14]
[381065303,1755987040379,-170.637382,0.00038356,14]
[381065304,1755987040388,-170.637382,0.00038356,14]
[381065305,1755987040397,-1695.491154,0.00038356,14]
[381065306,1755987040406,-1695.491154,0.00038356,14]
[381065307,1755987040415,-151.0,0.00038356,14]
[381065308,1755987040424,-151.0,0.00038356,14]
[381065309,1755987040434,-151.0,0.00038356,14]
[381065310,1755987040443,-151.0,0.00038356,14]
[381065311,1755987040452,-151.0,0.00038356,14]
[381065312,1755987040461,-151.0,0.00038356,14]
[381065313,1755987040470,-151.0,0.00038356,14]
[381065314,1755987040480,-151.0,0.00038356,14]
[381065315,1755987040489,-151.0,0.00038356,14]
[381065316,1755987040498,-151.0,0.00038356,14]
[381065317,1755987040507,-162.662189,0.00038356,14]
[381065318,1755987040516,-466.358217,0.00038356,14]
[381065319,1755987040526,-151.0,0.00038356,14]
[381065320,1755987040537,-151.0,0.00038356,14]
[381065321,1755987040546,-466.358217,0.00038356,14]
[381065323,1755987040555,-151.0,0.00038356,14]
[381065325,1755987040564,-466.358217,0.00038356,14]
[381065326,1755987040574,-151.0,0.00038356,14]
[381065328,1755987040583,-466.358217,0.00038356,14]
[381065330,1755987040592,-158.55,0.00038356,14]
[381065332,1755987040603,-158.55,0.00038356,14]
[381065334,1755987040613,-158.55,0.00038356,14]
[381065336,1755987040622,-158.55,0.00038356,14]
[381065338,1755987040631,-326.81614,0.00038356,14]
[381065340,1755987040640,-326.81614,0.00038356,14]
[381065342,1755987040649,-326.81614,0.00038356,14]
[381065344,1755987040658,-326.81614,0.00038356,14]
[381065346,1755987040667,-151.0,0.00038356,14]
[381065348,1755987040676,-151.0,0.00038356,14]
[381065350,1755987040686,-320.559826,0.00038356,14]
[381065352,1755987040695,-320.559826,0.00038356,14]
[381065354,1755987040704,-320.559826,0.00038356,14]
[381065356,1755987040713,-151.0,0.00038356,14]
[381065357,1755987040722,-320.559826,0.00038356,14]
[381065358,1755987040732,-151.0,0.00038356,14]
[381065359,1755987040741,-151.0,0.00038356,14]
[381065360,1755987040750,-151.0,0.00038356,14]
[381065361,1755987040759,-500.0,0.000384,5]
[381065362,1755987040769,-500.0,0.000384,5]
[381065363,1755987040778,-500.0,0.000384,5]
[381065364,1755987040787,-281.33198475,0.00038892,32]
[381065365,1755987040796,-501.04144634,0.00038983,5]
[381065366,1755987040805,-500.0,0.00038983,5]
[381065367,1755987040815,-500.0,0.00038983,5]
[381065368,1755987040824,-217.26733275,0.00038983,5]
[381065369,1755987040833,-501.5403866,0.00038983,5]
[381065370,1755987040843,-548.04642541,0.00038983,5]
[381065371,1755987040853,-500.0,0.00038983,5]
[381065372,1755987040862,-916.96542323,0.00039531,5]
[381065373,1755987040871,-1000.0,0.00039531,5]
[381065374,1755987040881,-1000.0,0.00039531,5]
[381065375,1755987040890,-500.0,0.00039726,120]
[381065376,1755987040899,-199.0,0.000398,10]
[381065377,1755987040908,-574.79,0.000398,14]
[381065378,1755987040917,-199.0,0.00039889,120]
[381065379,1755987040926,-217.0334113,0.0003999,3]
[381065380,1755987040935,-151.0,0.00039999,60]
[381065381,1755987040944,-190.89222303,0.00039999,60]
[381065382,1755987040953,-500.0,0.00039999,60]
[381065383,1755987040963,-151.0,0.00039999,60]
[381065384,1755987040971,-151.0,0.00039999,60]
[381065385,1755987040981,-151.0,0.00039999,60]
[381065386,1755987040990,-500.0,0.00039999,60]
[381065387,1755987041000,-151.000001,0.00039999,60]
[381065388,1755987041009,-151.0,0.00039999,60]
[381065389,1755987041018,-151.0,0.00039999,60]
[381065390,1755987041027,-151.0,0.00039999,60]
[381065391,1755987041036,-151.0,0.00039999,60]
[381065392,1755987041045,-151.0,0.00039999,14]
[381065393,1755987041055,-151.0,0.00039999,14]
[381065394,1755987041064,-151.0,0.00039999,14]
[381065395,1755987041073,-151.0,0.00039999,14]
[381065396,1755987041082,-500.0,0.00039999,60]
[381065397,1755987041091,-500.0,0.00039999,60]
[381065398,1755987041100,-151.0,0.00039999,60]
[381065399,1755987041110,-500.0,0.00039999,60]
[381065400,1755987041119,-151.0,0.00039999,60]
[381065401,1755987041128,-151.0,0.00039999,60]
[381065402,1755987041137,-151.0,0.00039999,60]
[381065403,1755987041146,-500.0,0.00039999,60]
[381065404,1755987041155,-151.0,0.00039999,60]
[381065405,1755987041167,-151.0,0.00039999,60]
[381065406,1755987041177,-151.0,0.00039999,60]
[381065407,1755987041186,-151.0,0.00039999,60]
[381065408,1755987041195,-151.0,0.00039999,60]
[381065409,1755987041204,-151.0,0.00039999,60]
[381065410,1755987041213,-151.0,0.00039999,2]
[381065411,1755987041222,-151.0,0.00039999,60]
[381065412,1755987041232,-500.0,0.00039999,60]
[381065413,1755987041241,-500.0,0.00039999,60]
[381065414,1755987041250,-151.0,0.00039999,60]
[381065415,1755987041259,-12086.11057691,0.0004,30]
[381065416,1755987041269,-260.4067663,0.0004,120]
[381065417,1755987041278,-160.0,0.0004,30]
[381065418,1755987041287,-217.0334113,0.0004,30]
[381065419,1755987041296,-232.37252479,0.0004,30]
[381065420,1755987041305,-844.50316758,0.0004,30]
[381065421,1755987041314,-275.040463,0.0004,14]
[381065422,1755987041323,-163.366267,0.0004,14]
[381065423,1755987041332,-163.366267,0.0004,14]
[381065424,1755987041341,-151.0,0.0004,14]
[381065425,1755987041350,-163.366267,0.0004,14]
[381065426,1755987041359,-267.636651,0.0004,14]
[381065427,1755987041368,-163.366267,0.0004,14]
[381065428,1755987041377,-151.0,0.0004,14]
[381065429,1755987041388,-373.340385,0.0004,14]
[381065430,1755987041397,-373.340385,0.0004,14]
[381065431,1755987041406,-373.340385,0.0004,14]
[381065432,1755987041415,-373.340385,0.0004,14]
[381065433,1755987041424,-151.0,0.0004,14]
[381065434,1755987041433,-302.28126,0.0004,14]
[381065435,1755987041442,-302.28126,0.0004,14]
[381065436,1755987041451,-302.28126,0.0004,14]
[381065437,1755987041461,-151.0,0.0004,14]
[381065438,1755987041470,-302.28126,0.0004,14]
[381065439,1755987041480,-192.435499,0.0004,14]
[381065440,1755987041489,-151.0,0.0004,14]
[381065441,1755987041499,-151.0,0.0004,14]
[381065442,1755987041507,-171.714576,0.0004,14]
[381065443,1755987041518,-151.0,0.0004,14]
[381065445,1755987041533,-171.714576,0.0004,14]
[381065447,1755987041543,-171.714576,0.0004,14]
[381065448,1755987041552,-171.714576,0.0004,14]
[381065450,1755987041562,-151.0,0.0004,14]
[381065451,1755987041573,-151.0,0.0004,14]
[381065452,1755987041583,-176.112651,0.0004,14]
[381065453,1755987041592,-151.528159,0.0004,14]
[381065455,1755987041602,-151.528159,0.0004,14]
[381065457,1755987041612,-151.0,0.0004,14]
[381065458,1755987041626,-151.528159,0.0004,14]
[381065459,1755987041636,-151.0,0.0004,14]
[381065460,1755987041645,-151.528159,0.0004,14]
[381065461,1755987041655,-556.318812,0.0004,14]
[381065462,1755987041665,-1440.584452,0.0004,14]
[381065463,1755987041674,-556.318812,0.0004,14]
[381065464,1755987041684,-151.0,0.0004,14]
[381065465,1755987041693,-1440.584452,0.0004,14]
[381065466,1755987041703,-556.318812,0.0004,14]
[381065467,1755987041712,-1440.584452,0.0004,14]
[381065468,1755987041722,-556.318812,0.0004,14]
[381065469,1755987041731,-1440.584452,0.0004,14]
[381065470,1755987041740,-1500.0,0.00040079,5]
[381065471,1755987041750,-7357.52967304,0.00040263,3]
[381065472,1755987041759,-529.05847148,0.00040263,3]
[381065473,1755987041768,-151.0,0.00040273,60]
[381065474,1755987041777,-500.0,0.00040273,60]
[381065475,1755987041787,-151.0,0.00040273,60]
[381065476,1755987041797,-500.0,0.00040273,60]
[381065477,1755987041806,-151.0,0.00040273,60]
[381065478,1755987041816,-500.0,0.00040273,60]
[381065479,1755987041825,-500.0,0.00040273,60]
[381065480,1755987041835,-151.0,0.00040273,60]
[381065481,1755987041845,-500.0,0.00040273,60]
[381065482,1755987041854,-151.0,0.00040273,60]
[381065483,1755987041863,-151.0,0.00040273,60]
[381065484,1755987041873,-151.0,0.00040273,60]
[381065485,1755987041882,-500.0,0.00040273,60]
[381065486,1755987041891,-151.0,0.00040273,60]
[381065487,1755987041901,-151.0,0.00040273,60]
[381065488,1755987041911,-151.0,0.00040273,60]
[381065489,1755987041920,-151.0,0.00040273,60]
[381065490,1755987041929,-198.0,0.00040273,60]
[381065491,1755987041944,-198.0,0.00040273,60]
[381065492,1755987041960,-500.0,0.00040273,60]
[381065493,1755987041970,-500.0,0.00040273,60]
[381065494,1755987041980,-151.0,0.00040273,60]
[381065495,1755987041989,-384.18063516,0.00040547,60]
[381065496,1755987041998,-151.0,0.00040547,60]
[381065497,1755987042008,-302.0,0.00040547,60]
[381065498,1755987042017,-151.0,0.00040547,60]
[381065499,1755987042028,-500.0,0.00040547,60]
[381065500,1755987042038,-500.0,0.00040547,60]
[381065501,1755987042048,-198.0,0.00040547,60]
[381065502,1755987042059,-500.0,0.00040547,60]
[381065503,1755987042068,-210.90349589,0.00040547,60]
[381065504,1755987042077,-151.0,0.00040547,60]
[381065505,1755987042086,-151.0,0.00040547,60]
[381065506,1755987042098,-492.56492559,0.00040547,60]
[381065507,1755987042108,-194.58011813,0.00040547,60]
[381065508,1755987042119,-151.0,0.00040547,60]
[381065509,1755987042129,-181.313345,0.00040547,60]
[381065510,1755987042139,-151.0,0.00040547,60]
[381065511,1755987042148,-500.0,0.00040547,60]
[381065512,1755987042158,-500.0,0.00040547,60]
[381065513,1755987042167,-151.0,0.00040547,60]
[381065514,1755987042177,-281.33198475,0.00040619,36]
[381065515,1755987042186,-2000.0,0.00040627,5]
[381065516,1755987042195,-296.72542831,0.00040821,60]
[381065517,1755987042206,-151.0,0.00040821,60]
[381065518,1755987042217,-500.0,0.00040821,60]
[381065519,1755987042227,-500.0,0.00040821,60]
[381065520,1755987042237,-614.64253542,0.00040821,60]
[381065521,1755987042248,-198.99807432,0.00040821,60]
[381065522,1755987042258,-151.0,0.00040821,60]
[381065523,1755987042267,-151.58718127,0.00040821,60]
[381065524,1755987042277,-244.58033851,0.00040821,60]
[381065525,1755987042286,-500.0,0.00040821,60]
[381065526,1755987042295,-198.0,0.00040821,60]
[381065527,1755987042305,-152.86277154,0.00041095,60]
[381065528,1755987042315,-500.0,0.00041095,60]
[381065529,1755987042324,-230.23854974,0.00041095,60]
[381065530,1755987042334,-151.0,0.00041095,60]
[381065531,1755987042343,-500.0,0.00041095,60]
[381065532,1755987042353,-500.0,0.00041095,120]
[381065533,1755987042362,-500.0,0.00041175,10]
[381065534,1755987042372,-500.0,0.00041369,60]
[381065535,1755987042381,-198.0,0.00041369,60]
[381065536,1755987042390,-349.0,0.00041369,60]
[381065537,1755987042399,-500.0,0.00041643,60]
[381065538,1755987042408,-500.0,0.00041917,60]
[381065539,1755987042417,-426.096,0.0004216,2]
[381065540,1755987042427,-500.0,0.00042191,60]
[381065541,1755987042436,-281.33198475,0.00042345,39]
[381065542,1755987042446,-160.0,0.0004244,10]
[381065543,1755987042455,-500.0,0.0004244,10]
[381065544,1755987042464,-500.0,0.0004244,7]
[381065545,1755987042474,-217.0334113,0.0004244,10]
[381065546,1755987042484,-151.0,0.0004244,120]
[381065547,1755987042493,-151.0,0.0004244,30]
[381065548,1755987042503,-151.0,0.0004244,120]
[381065549,1755987042512,-151.0,0.0004244,30]
[381065550,1755987042522,-151.0,0.0004244,120]
[381065551,1755987042536,-242.473452,0.0004244,30]
[381065552,1755987042545,-151.0,0.0004244,120]
[381065553,1755987042555,-151.0,0.0004244,120]
[381065554,1755987042564,-151.0,0.0004244,120]
[381065555,1755987042574,-466.358217,0.0004244,120]
[381065556,1755987042583,-151.0,0.0004244,120]
[381065557,1755987042592,-151.0,0.0004244,120]
[381065558,1755987042601,-466.358217,0.0004244,120]
[381065559,1755987042611,-151.0,0.0004244,120]
[381065561,1755987042621,-466.358217,0.0004244,120]
[381065562,1755987042631,-151.0,0.0004244,120]
[381065564,1755987042640,-466.358217,0.0004244,120]
[381065566,1755987042649,-158.55,0.0004244,120]
[381065568,1755987042659,-158.55,0.0004244,120]
[381065570,1755987042669,-158.55,0.0004244,120]
[381065572,1755987042678,-158.55,0.0004244,120]
[381065574,1755987042687,-326.81614,0.0004244,120]
[381065576,1755987042697,-326.81614,0.0004244,120]
[381065578,1755987042706,-326.81614,0.0004244,120]
[381065580,1755987042715,-326.81614,0.0004244,120]
[381065582,1755987042725,-151.0,0.0004244,120]
[381065584,1755987042735,-212.332818,0.0004244,120]
[381065587,1755987042744,-320.559826,0.0004244,120]
[381065589,1755987042753,-320.559826,0.0004244,120]
[381065590,1755987042762,-320.559826,0.0004244,120]
[381065591,1755987042771,-151.512819,0.0004244,120]
[381065592,1755987042781,-320.559826,0.0004244,120]
[381065593,1755987042790,-151.0,0.0004244,120]
[381065594,1755987042799,-151.0,0.0004244,120]
[381065595,1755987042809,-500.0,0.00042447,30]
[381065596,1755987042818,-500.0,0.00042465,60]
[381065597,1755987042827,-500.0,0.00042465,120]
[381065598,1755987042836,-500.0,0.00042739,60]
[381065599,1755987042845,-973.0,0.0004281,2]
[381065600,1755987042854,-639.16,0.0004281,2]
[381065601,1755987042863,-2154.0,0.0004281,2]
[381065602,1755987042872,-496.638635,0.0004281,120]
[381065603,1755987042881,-496.638635,0.0004281,120]
[381065604,1755987042890,-496.638635,0.0004281,120]
[381065605,1755987042900,-496.638635,0.0004281,120]
[381065606,1755987042909,-151.0,0.0004281,120]
[381065607,1755987042918,-151.0,0.0004281,120]
[381065608,1755987042927,-151.0,0.0004281,120]
[381065609,1755987042936,-151.0,0.0004281,120]
[381065610,1755987042945,-151.0,0.0004281,120]